[Event "44th Chess Olympiad Open 2022"]
[Site "Chennai"]
[Date "2022.08.03"]
[Round "6.56"]
[White "Mirzaad, S.wahabuddin"]
[Black "Nassr, Ali"]
[Result "1/2-1/2"]
[WhiteElo "1999"]
[BlackElo "2263"]
[Annotator "TA"]
[PlyCount "104"]
[EventDate "2022.??.??"]
[TimeControl "60"]

{[%evp 15,104,4,6,-20,8,-22,-16,-8,0,-17,-8,-7,-8,-22,-9,-20,-9,-19,-19,-21,0,
-22,-13,-27,-28,-16,-15,-25,-15,-30,-25,-29,-14,-20,-14,-44,-19,-44,-8,-33,-19,
-37,-18,-55,-35,-49,-58,-48,-11,-20,-40,-104,-20,-27,0,0,0,0,19,18,20,0,35,0,
20,4,35,36,34,20,18,0,36,0,17,13,13,13,13,-27,-20,-22,-4,-9,-8,-8,-15,-6,0,0,0]
} 1. d4 {[%emt 0:00:13]} Nf6 {[%emt 0:00:15]} 2. Bf4 {[%emt 0:00:15]} e6 {
[%emt 0:00:26]} 3. e3 {[%emt 0:00:52]} c5 {[%emt 0:00:37]} 4. c3 {[%emt 0:00:
00]} d5 {[%emt 0:01:00]} 5. Nd2 {[%emt 0:00:20]} Nc6 {[%emt 0:00:30]} 6. Ngf3 {
[%emt 0:00:14]} Bd6 {[%emt 0:00:44]} 7. Bg3 {[%emt 0:01:24]} O-O {[%emt 0:00:
00]} 8. Bd3 {[%emt 0:00:11]} b6 {[%emt 0:00:44]} 9. O-O {[%emt 0:01:10] D02:1
d4 d5 2 Nf3 sidelines, including 2...Nf6 3 g3 and 2...Nf6 3 Bf4.} Bb7 {[%emt 0:
00:00]} 10. Qe2 {[%emt 0:00:45]} Bxg3 {[%emt 0:14:31] The old main line.} 11.
hxg3 {[%emt 0:00:14]} Re8 {[%emt 0:09:28]} 12. dxc5 {[%emt 0:07:45]} bxc5 {
[%emt 0:01:44]} 13. e4 {[%emt 0:00:22] [#]} a5 $146 {[%emt 0:06:57]} ({
Predecessor:} 13... Ng4 14. Rfe1 f6 15. Rad1 Qb6 16. b3 Qa5 17. Nb1 d4 18. b4
cxb4 19. cxd4 Qh5 {½-½ (73) Eret,J (2235)-Husek,M (2174) Kouty nad Desnou
2017}) 14. Rfd1 {[%emt 0:01:14]} h6 {[%emt 0:03:52]} 15. Rab1 {[%emt 0:08:16]}
Qb6 {[%emt 0:02:03]} 16. b3 {[%emt 0:08:26]} Ba6 {[%emt 0:04:28]} 17. Bxa6 {
[%emt 0:07:22]} Rxa6 {[%emt 0:00:18]} 18. Re1 {[%emt 0:03:32][%cal Yg3g4]} Raa8
{[%emt 0:02:09]} 19. exd5 {[%emt 0:06:29]} exd5 {[%emt 0:10:48]} 20. Qd3 {
[%emt 0:01:48]} Rad8 {[%emt 0:01:10]} 21. Qf5 {[%emt 0:06:13]} Rxe1+ {[%emt 0:
00:00]} 22. Rxe1 {[%emt 0:00:30]} a4 {[%emt 0:00:12]} 23. Qc2 {[%emt 0:07:05]}
axb3 {[%emt 0:07:00]} 24. axb3 {[%emt 0:00:03]} Ra8 {[%emt 0:00:19]} 25. Nh4 {
[%emt 0:06:05]} Nd8 {[%emt 0:03:26]} 26. Nf5 {[%emt 0:02:12]} Ne6 {[%emt 0:00:
00]} (26... g6 $5 {[%cal Rg6f5]} 27. Ne3 (27. Nxh6+ Kg7 $15) 27... Nc6 $15) 27.
Ne3 {[%emt 0:03:49]} g6 {[%emt 0:03:45]} 28. Qd3 {[%emt 0:03:59]} Qb7 {[%emt 0:
00:00]} 29. Qc2 {[%emt 0:06:29] Inhibits Ra2.} Ra3 {[%emt 0:02:25]} 30. Rb1 {
[%emt 0:01:04]} Qa8 {[%emt 0:03:17]} 31. b4 {[%emt 0:04:00]} Ra2 {[%emt 0:00:
00]} 32. Rb2 {[%emt 0:01:08]} Ra1+ {[%emt 0:00:15]} 33. Nef1 {[%emt 0:00:54]} (
33. Rb1 $15) 33... cxb4 {[%emt 0:01:32]} (33... c4 $17) 34. cxb4 $11 {[%emt 0:
00:00]} Nd4 {[%emt 0:00:36]} 35. Qd3 {[%emt 0:00:43]} Qa7 {[%emt 0:01:43]} 36.
b5 {[%emt 0:01:28] [#] And now b6 would win.} Qb6 {[%emt 0:04:52]} 37. Rb4 {
[%emt 0:01:09]} Nf5 {[%emt 0:01:40]} 38. g4 {[%emt 0:02:36]} Ne7 {[%emt 0:00:
00]} (38... Nd6 $5 {[%cal Ra1a5]}) 39. Nb3 {[%emt 0:03:25]} Re1 {[%emt 0:01:37]
} 40. Qd4 {[%emt 0:04:16]} Nd7 {[%emt 0:01:49]} 41. Qd2 {[%emt 0:30:40][%csl
Ye1,Yh6]} Rb1 {[%emt 0:04:02]} 42. Qc2 {[%emt 0:00:00]} (42. Nd4 $5 {[%cal
Rb4b1]} Ra1 43. Qc3 $14 (43. Qxh6 Ne5 $16)) 42... Re1 {[%emt 0:00:19]} 43. Qd2
{[%emt 0:00:00][%csl Ye1,Yh6]} Rb1 {[%emt 0:01:26]} 44. Qc2 {[%emt 0:00:00]}
Re1 {[%emt 0:00:08]} 45. Qc3 {[%emt 0:00:00]} Rb1 {[%emt 0:05:43]} 46. Nd4 {
[%emt 0:00:00]} Qa5 {[%emt 0:05:45]} 47. Rb3 {[%emt 0:00:00]} Qxc3 {[%emt 0:00:
00]} 48. Rxc3 {[%emt 0:00:00] [#] Hoping for Rc7. The position is equal.} Nb6 {
[%emt 0:00:48]} 49. g3 {[%emt 0:00:00]} Nec8 {[%emt 0:01:45]} 50. Kg2 {[%emt 0:
00:00]} Rb4 {[%emt 0:00:59]} 51. Rd3 {[%emt 0:00:00]} Nd6 {[%emt 0:00:56]} 52.
Ne3 {[%emt 0:00:00]} Nxb5 {[%emt 0:00:36] Weighted Error Value: White=0.15 
(very precise) /Black=0.13 (very precise)} 1/2-1/2

[Event "44th Chess Olympiad Open 2022"]
[Site "Chennai"]
[Date "2022.08.03"]
[Round "6.56"]
[White "Sakhawaty, Sepehr"]
[Black "Djabri, Massinas"]
[Result "0-1"]
[WhiteElo "1809"]
[BlackElo "2206"]
[Annotator "TA"]
[PlyCount "128"]
[EventDate "2022.??.??"]
[TimeControl "60"]

{[%evp 17,128,0,11,4,16,27,21,26,24,-6,41,18,24,0,0,-9,27,27,22,-7,-11,0,0,0,6,
-54,-50,-54,-57,-72,-71,-83,-93,-77,-47,-33,-37,-58,-54,-53,-52,-54,-41,-70,
-50,-52,-69,-63,-48,-59,-43,-58,-58,-114,-81,-191,-54,-79,-51,-121,-91,-93,-53,
-85,-85,-314,-320,-320,-311,-321,-170,-271,-268,-235,-235,-475,-144,-823,-670,
-29961,-29962,-29961,-29966,-29966,-29967,-29967,-29969,-29970,-29971,-29970,
-29972,-29965,-29972,-29973,-29974,-29975,-29970,-29970,-29971,-29977,-29970,
-29976,-29977,-29978,-29979,-29978,-29975,-29982,-29983,-29983,-29984,-29993,
-29994]} 1. e4 {[%emt 0:00:05]} c5 {[%emt 0:00:08]} 2. Nf3 {[%emt 0:00:04]} d6
{[%emt 0:00:05]} 3. d4 {[%emt 0:00:26]} cxd4 {[%emt 0:00:06]} 4. Nxd4 {[%emt 0:
00:00]} Nf6 {[%emt 0:00:09]} 5. Nc3 {[%emt 0:00:03]} a6 {[%emt 0:00:08]} 6. Be2
{[%emt 0:00:03]} e5 {[%emt 0:00:06]} 7. Nb3 {[%emt 0:00:03]} Be7 {[%emt 0:00:
00]} 8. Be3 {[%emt 0:00:05]} Be6 {[%emt 0:00:05]} 9. Bf3 {[%emt 0:04:11]} Nbd7
{[%emt 0:03:03]} 10. O-O {[%emt 0:04:10] B92: Sicilian Najdorf: 6 Be2.} b5 {
[%emt 0:02:56]} 11. Nd5 {[%emt 0:08:15]} Nxd5 {[%emt 0:03:50]} 12. exd5 {
[%emt 0:00:06] The position is equal.} Bf5 {[%emt 0:00:04] [#]} 13. a4 $146 {
[%emt 0:05:07]} ({Predecessor:} 13. Qd2 a5 14. a4 b4 15. Be2 O-O 16. c3 bxc3
17. bxc3 Nf6 18. Bb5 Ng4 19. c4 Nxe3 20. Qxe3 {½-½ (43) Huerga,A (2145)
-Ylonen,O (2009) FICGS email 2013}) 13... Rc8 {[%emt 0:05:52]} (13... b4 $11)
14. c3 {[%emt 0:03:05] Black should prevent axb5.} b4 $1 {[%emt 0:02:13]} 15.
Rc1 {[%emt 0:09:05]} ({Don't play} 15. cxb4 Bc2 16. Qd2 Bxb3 $17) 15... bxc3 {
[%emt 0:04:47]} 16. bxc3 {[%emt 0:00:20]} Bg5 {[%emt 0:00:19]} 17. Be2 {
[%emt 0:15:00]} Ra8 {[%emt 0:06:15]} 18. f4 {[%emt 0:05:58]} exf4 {[%emt 0:00:
00]} 19. Bxf4 {[%emt 0:04:10]} Bxf4 {[%emt 0:01:42]} 20. Rxf4 {[%emt 0:01:48]}
Bg6 {[%emt 0:00:35]} 21. Bd3 {[%emt 0:10:02]} (21. c4 $1 $11) 21... O-O {
[%emt 0:02:53]} 22. Bxg6 {[%emt 0:01:09]} hxg6 {[%emt 0:00:10]} 23. Nd4 {
[%emt 0:03:38]} Qg5 {[%emt 0:02:35][%csl Yd5,Yf4]} 24. Qg4 {[%emt 0:06:05]}
Qxg4 {[%emt 0:01:15]} 25. Rxg4 {[%emt 0:00:01]} Ne5 {[%emt 0:00:20]} (25... Nf6
$5 {[%cal Rf6g4]} 26. Rg5 Rfe8 $17) 26. Re4 {[%emt 0:02:44]} Rfc8 {[%emt 0:00:
00] Prevents Nc6.} 27. c4 {[%emt 0:05:32]} Rxc4 {[%emt 0:12:59]} 28. Rxc4 {
[%emt 0:00:07]} Nxc4 $15 {[%emt 0:00:04] Endgame KRN-KRN} 29. Nc6 {[%emt 0:00:
51]} Nb6 {[%emt 0:00:06]} 30. Rd4 {[%emt 0:02:33]} Re8 {[%emt 0:00:00]} 31. a5
{[%emt 0:00:39]} Nd7 {[%emt 0:00:09]} 32. Kf2 {[%emt 0:01:33]} g5 {[%emt 0:02:
27][%cal Yg6g5,Yg5g4]} 33. Rb4 {[%emt 0:02:09][%cal Yb4b6]} Nc5 {[%emt 0:01:45]
} 34. Rb6 {[%emt 0:00:43]} Re4 {[%emt 0:06:19]} 35. Kf3 {[%emt 0:03:45]} (35.
g3 $15) 35... g4+ $17 {[%emt 0:01:43]} 36. Kf2 {[%emt 0:00:00]} (36. Kg3 $17)
36... Ra4 {[%emt 0:00:25]} ({Black should try} 36... f5 $19 {...Nd3+ is the
strong threat.} 37. Kf1 f4) 37. Ne7+ {[%emt 0:01:21] Discovered Attack} Kh7 {
[%emt 0:01:06]} 38. Nc8 {[%emt 0:00:32]} (38. Kg3 $15) 38... Rxa5 {[%emt 0:01:
14]} 39. Nxd6 {[%emt 0:00:19]} Na4 {[%emt 0:01:04][%csl Yb6,Yd5]} 40. Rb4 {
[%emt 0:02:18]} Rxd5 {[%emt 0:01:50] Hoping for ... Nc5.} 41. Nxf7 $2 {[%emt 0:
09:43]} (41. Rxg4 $17 Nc5 42. Rh4+ Kg6 43. Nc4) 41... Nc5 $1 $19 {[%emt 0:01:
27]} 42. Kg3 {[%emt 0:00:24]} Kg8 {[%emt 0:01:55]} 43. Rf4 {[%emt 0:01:29]} Ne6
{[%emt 0:01:16]} (43... a5 $142 {Threatens to win with ...a4.} 44. Kxg4 a4) 44.
Rf1 {[%emt 0:02:46]} (44. Rf2 {only move.}) 44... a5 {[%emt 0:00:39]} 45. Kxg4
{[%emt 0:02:20]} a4 {[%emt 0:00:20] Strongly threatening ...Rd4+.} 46. h4 $2 {
[%emt 0:05:23] [#]} (46. g3) 46... a3 $2 {[%emt 0:00:45]} (46... Rd4+ $1 $19
47. Kg3 {[#]} Rf4 $1) 47. Ng5 $2 {[%emt 0:00:51] This move loses the game for
White.} (47. Ra1 $17) 47... Nxg5 {[%emt 0:00:34]} 48. hxg5 {[%emt 0:00:10]
KR-KR} a2 {[%emt 0:00:00] Black mates.} 49. Kh5 {[%emt 0:05:09]} Ra5 {[%emt 0:
07:03]} 50. Ra1 {[%emt 0:00:17]} Kh7 {[%emt 0:01:39]} 51. g3 {[%emt 0:00:32]}
Ra4 {[%emt 0:00:00][%csl Gh7][%cal Rg7g6]} 52. g6+ {[%emt 0:00:56]} Kg8 {
[%emt 0:00:06]} 53. Kg5 {[%emt 0:00:48]} Ra5+ {[%emt 0:00:15]} 54. Kf4 {
[%emt 0:00:35]} Kf8 {[%emt 0:00:11]} 55. g4 {[%emt 0:00:49]} Ke7 {[%emt 0:00:
25]} 56. g5 {[%emt 0:00:00]} Kd6 {[%emt 0:00:35]} 57. Ke4 {[%emt 0:02:10]} Ke6
{[%emt 0:00:14]} 58. Kf4 {[%emt 0:02:39]} Ra4+ {[%emt 0:00:06]} 59. Kg3 {
[%emt 0:00:51]} Kf5 {[%emt 0:00:09]} 60. Kh3 {[%emt 0:01:01]} Kxg6 {[%emt 0:00:
20]} 61. Kg3 {[%emt 0:00:29]} Kxg5 {[%emt 0:00:31]} 62. Kh3 {[%emt 0:00:15]}
Kf4 {[%emt 0:00:00]} 63. Kg2 {[%emt 0:00:15]} Ke3 {[%emt 0:00:06]} 64. Rh1 {
[%emt 0:02:04]} a1=Q {[%emt 0:00:23] Weighted Error Value: White=0.41/Black=0.
18 (very precise)} 0-1

[Event "44th Chess Olympiad Open 2022"]
[Site "Chennai"]
[Date "2022.08.03"]
[Round "6.57"]
[White "Mansour, Sameer"]
[Black "Ayyad, Maher"]
[Result "1-0"]
[WhiteElo "2275"]
[BlackElo "2101"]
[Annotator "RC"]
[PlyCount "111"]
[EventDate "2022.??.??"]
[TimeControl "60"]

1. Nf3 {[%emt 0:00:09]} d5 {[%emt 0:00:11]} 2. g3 {[%emt 0:00:16]} Nf6 {
[%emt 0:00:05]} 3. Bg2 {[%emt 0:00:13]} c6 {[%emt 0:00:20]} 4. d3 {[%emt 0:00:
00]} g6 {[%emt 0:00:18]} 5. Nbd2 {[%emt 0:01:11]} Bg7 {[%emt 0:00:32]} 6. O-O {
[%emt 0:00:32]} Nbd7 {[%emt 0:00:57]} 7. e4 {[%emt 0:00:18]} dxe4 {[%emt 0:00:
00]} 8. dxe4 {[%emt 0:00:12]} e5 {[%emt 0:00:27]} 9. Qe2 {[%emt 0:12:51]} O-O {
[%emt 0:02:42]} 10. Nc4 {[%emt 0:00:28]} Qc7 {[%emt 0:01:03]} 11. Rd1 {[%emt 0:
00:00]} Rd8 {[%emt 0:03:10]} 12. b3 {[%emt 0:04:48]} b5 {[%emt 0:00:09]} 13.
Nd6 {[%emt 0:07:56]} Nc5 {[%emt 0:10:18]} 14. Nxc8 {[%emt 0:00:58]} Rxd1+ {
[%emt 0:03:12]} 15. Qxd1 {[%emt 0:00:04]} Rxc8 {[%emt 0:00:20]} 16. Nd2 {
[%emt 0:00:12]} Rd8 {[%emt 0:00:23]} 17. Qe2 {[%emt 0:04:21]} Ne6 {[%emt 0:00:
00]} 18. c3 {[%emt 0:03:28]} Qd7 {[%emt 0:00:28]} 19. Nf1 {[%emt 0:06:56]} Qd3
{[%emt 0:06:56]} 20. Qxd3 {[%emt 0:01:58]} Rxd3 {[%emt 0:00:06]} 21. Be3 {
[%emt 0:00:10]} a6 {[%emt 0:01:50]} 22. Rc1 {[%emt 0:00:09]} Ng4 {[%emt 0:00:
00]} 23. Bb6 {[%emt 0:02:52]} Bh6 {[%emt 0:05:42]} 24. Rc2 {[%emt 0:04:39]} Bf8
{[%emt 0:06:17]} 25. b4 {[%emt 0:06:29]} Ng5 {[%emt 0:07:28]} 26. h4 {[%emt 0:
00:00]} Nf3+ {[%emt 0:00:49]} 27. Bxf3 {[%emt 0:00:47]} Rxf3 {[%emt 0:00:07]}
28. Ne3 {[%emt 0:00:28]} Nxe3 {[%emt 0:00:24]} 29. Bxe3 {[%emt 0:00:04]} Rf6 {
[%emt 0:00:39]} 30. a3 {[%emt 0:07:05]} Rd6 {[%emt 0:01:11]} 31. Rc1 {[%emt 0:
00:00]} Be7 {[%emt 0:19:41]} 32. Bc5 {[%emt 0:05:00]} Rd7 {[%emt 0:00:06]} 33.
Bxe7 {[%emt 0:00:15]} Rxe7 {[%emt 0:00:05]} 34. c4 {[%emt 0:00:27]} Re6 {
[%emt 0:02:32]} 35. a4 {[%emt 0:03:04]} bxa4 {[%emt 0:14:50]} 36. c5 {[%emt 0:
00:00]} Re7 {[%emt 0:01:17]} 37. Ra1 {[%emt 0:00:11]} Ra7 {[%emt 0:00:09]} 38.
Rxa4 {[%emt 0:00:28]} Kf8 {[%emt 0:00:06]} 39. Kf1 {[%emt 0:01:05]} Ke7 {
[%emt 0:02:51]} 40. Ke2 {[%emt 0:00:11]} Kd7 {[%emt 0:00:30]} 41. Kd3 {[%emt 0:
00:00]} Kc7 {[%emt 0:31:11]} 42. Kc4 {[%emt 0:02:02]} Ra8 {[%emt 0:00:00]} 43.
Ra3 {[%emt 0:00:00]} f5 {[%emt 0:00:00]} 44. exf5 {[%emt 0:00:00]} gxf5 {
[%emt 0:00:00]} 45. h5 {[%emt 0:00:00]} h6 {[%emt 0:00:00]} 46. f3 {[%emt 0:00:
00]} Kb7 {[%emt 0:00:00]} 47. Rd3 {[%emt 0:00:00]} Rg8 {[%emt 0:00:00]} 48.
Rd7+ {[%emt 0:00:00]} Kb8 {[%emt 0:00:00]} 49. Rd6 {[%emt 0:00:00]} Rxg3 {
[%emt 0:01:03]} 50. Rxc6 {[%emt 0:00:00]} Kb7 {[%emt 0:00:22]} 51. Rb6+ {
[%emt 0:00:00]} Ka7 {[%emt 0:00:06]} 52. Rxh6 {[%emt 0:00:00]} Rxf3 {[%emt 0:
00:00]} 53. Rh7+ {[%emt 0:00:00]} Kb8 {[%emt 0:00:26]} 54. c6 {[%emt 0:11:48]}
Rf1 {[%emt 0:11:28]} 55. Kc5 {[%emt 0:00:00]} Rb1 {[%emt 0:00:05]} 56. h6 {
[%emt 0:00:00]} 1-0

[Event "44th Chess Olympiad Open 2022"]
[Site "Chennai"]
[Date "2022.08.03"]
[Round "6.57"]
[White "Ayyad, Husain"]
[Black "Ahmad, Al Khatib"]
[Result "0-1"]
[WhiteElo "2209"]
[BlackElo "2244"]
[Annotator "TA"]
[PlyCount "86"]
[EventDate "2022.??.??"]
[TimeControl "60"]

{[%evp 15,86,-8,-7,0,0,-3,0,0,0,0,0,0,0,0,15,11,21,-8,31,6,19,23,19,0,11,0,10,
0,0,0,0,0,0,0,0,0,0,0,0,0,0,0,0,0,0,0,0,-421,-421,-452,-455,-444,-424,-1640,
-1545,-1583,-1481,-1370,-533,-980,-781,-5069,-5069,-3588,-1678,-1607,-1438,
-29971,-1607,-29973,-29975,-29980,-29981]} 1. e4 {[%emt 0:00:03]} c6 {[%emt 0:
00:00]} 2. d4 {[%emt 0:00:05]} d5 {[%emt 0:00:04]} 3. exd5 {[%emt 0:00:04]}
cxd5 {[%emt 0:00:06]} 4. Bd3 {[%emt 0:00:06]} Nf6 {[%emt 0:00:43]} 5. h3 {
[%emt 0:00:06]} Nc6 {[%emt 0:01:30]} 6. c3 {[%emt 0:01:04]} g6 {[%emt 0:00:10]}
7. Nf3 {[%emt 0:00:04]} Bf5 {[%emt 0:00:20]} 8. Bxf5 {[%emt 0:00:11] 8.Be2 is
a critical line.} gxf5 {[%emt 0:00:01]} 9. O-O {[%emt 0:00:12] B13: Caro-Kann:
Exchange Variation and Panov-Botvinnik Attack.} e6 {[%emt 0:02:48]} 10. Bf4 {
[%emt 0:00:25]} Bd6 {[%emt 0:03:15]} 11. Bg5 {[%emt 0:02:43] The position is
equal.} Be7 {[%emt 0:08:49]} 12. Bxf6 {[%emt 0:00:07]} Bxf6 {[%emt 0:00:12] [#]
} 13. Nbd2 $146 {[%emt 0:00:04]} ({Predecessor:} 13. Ne1 Qd6 14. Nd3 O-O-O 15.
Nd2 Rhg8 16. Nf3 Rg6 17. Kh1 Rdg8 18. Rg1 Bd8 19. g3 f6 20. Qe2 {1-0 (35)
Sanal,V (2563)-Maung,M (2121) Chess.com INT 2021}) 13... Rg8 {[%emt 0:10:07]}
14. Qe2 {[%emt 0:00:08]} Rg6 {[%emt 0:04:25]} 15. a4 {[%emt 0:06:45][%cal
Ya2a4,Ya4a5,Ya5a6]} Qd6 {[%emt 0:07:20]} 16. a5 {[%emt 0:06:38]} Kf8 {[%emt 0:
14:46]} 17. b4 {[%emt 0:07:09][%cal Yb2b4,Yb4b5]} Kg8 {[%emt 0:01:58]} 18. b5 {
[%emt 0:00:04]} Ne7 {[%emt 0:00:24]} 19. a6 {[%emt 0:00:00]} b6 {[%emt 0:00:55]
} 20. Rac1 {[%emt 0:19:10]} Kh8 {[%emt 0:04:38]} 21. Ne5 {[%emt 0:06:03]} Rg7 {
[%emt 0:04:17]} 22. Kh1 {[%emt 0:07:44]} Rag8 {[%emt 0:02:07]} 23. Ndf3 {
[%emt 0:00:28]} Bxe5 {[%emt 0:05:52]} 24. Qxe5 {[%emt 0:00:58]} Qd7 {[%emt 0:
08:00]} 25. c4 {[%emt 0:15:26]} dxc4 {[%emt 0:00:00]} 26. Rxc4 {[%emt 0:00:00]}
Nd5 {[%emt 0:00:15] Prevents Rc7.} 27. Rc6 $1 {[%emt 0:00:00]} f6 {[%emt 0:05:
20]} 28. Qxe6 {[%emt 0:00:00]} Qxe6 {[%emt 0:00:00]} 29. Rxe6 {[%emt 0:00:00] 
[#] Strongly threatening Rd6.} Rxg2 {[%emt 0:00:00]} 30. Rd6 {[%emt 0:02:47]}
Nc3 {[%emt 0:00:41] Hoping for ...Ne4.} 31. Rxf6 $2 {[%emt 0:00:09]} (31. Rc6
$11 Ne4 32. Rc2) 31... Ne4 $19 {[%emt 0:01:09]} 32. Rxf5 {[%emt 0:03:36] And
now Ne5 would win.} Nxf2+ {[%emt 0:01:31]} 33. Rxf2 {[%emt 0:00:02]} Rxf2 {
[%emt 0:00:09] Endgame KRR-KRN} 34. d5 {[%emt 0:05:15]} (34. Nh4 $142 Rxf5 35.
Nxf5) 34... Rg3 {[%emt 0:07:18][%csl Yf3,Yh3]} 35. Nd4 {[%emt 0:03:52]} Rxf5 {
[%emt 0:00:56]} 36. Nxf5 {[%emt 0:00:01] KR-KN} Rb3 {[%emt 0:00:35]} (36...
Rxh3+ $142 37. Kg2 Rc3) 37. Nd6 {[%emt 0:00:09]} Rc3 {[%emt 0:01:14]} 38. Nb7 {
[%emt 0:00:37]} Rxh3+ {[%emt 0:01:33]} 39. Kg2 {[%emt 0:00:06]} Rd3 {[%emt 0:
00:06]} 40. d6 {[%emt 0:05:50]} Kg8 {[%emt 0:00:43]} 41. Kf2 {[%emt 0:30:26]}
Kf8 {[%emt 0:00:00] ( -> ...Ke8)} 42. Nd8 {[%emt 0:00:00]} Rxd6 {[%emt 0:00:00]
} 43. Nc6 {[%emt 0:00:00] [#]} Rxc6 $1 {[%emt 0:00:00] Weighted Error Value:
White=1.17/ Black=0.31} 0-1

[Event "44th Chess Olympiad Open 2022"]
[Site "Chennai"]
[Date "2022.08.03"]
[Round "6.57"]
[White "Aboudi, Marwan"]
[Black "Al-Burshaid, Ebrahim"]
[Result "1-0"]
[WhiteElo "2144"]
[BlackElo "1702"]
[Annotator "NA RC"]
[PlyCount "103"]
[EventDate "2022.??.??"]
[TimeControl "60"]

1. e4 {[%emt 0:00:21]} e5 {[%emt 0:00:12]} 2. Nf3 {[%emt 0:00:11]} Nc6 {
[%emt 0:00:05]} 3. Bb5 {[%emt 0:00:21]} a6 {[%emt 0:00:15]} 4. Ba4 {[%emt 0:00:
00]} Nf6 {[%emt 0:00:19]} 5. O-O {[%emt 0:00:14]} Be7 {[%emt 0:00:19]} 6. Re1 {
[%emt 0:00:25]} b5 {[%emt 0:00:08]} 7. Bb3 {[%emt 0:00:04]} d6 {[%emt 0:00:11]}
8. c3 {[%emt 0:00:14]} O-O {[%emt 0:00:24]} 9. d3 {[%emt 0:00:41]} Na5 {
[%emt 0:01:50]} 10. Bc2 {[%emt 0:00:11]} c5 {[%emt 0:00:24]} 11. Nbd2 {[%emt 0:
00:00]} Re8 {[%emt 0:05:35]} 12. Nf1 {[%emt 0:00:53]} Bf8 {[%emt 0:03:26]} 13.
Ng3 {[%emt 0:01:45]} Nc6 {[%emt 0:02:40]} 14. a4 {[%emt 0:04:24]} Rb8 {[%emt 0:
00:00]} 15. axb5 {[%emt 0:00:36]} axb5 {[%emt 0:00:20]} 16. d4 {[%emt 0:00:12]}
cxd4 {[%emt 0:04:38]} 17. cxd4 {[%emt 0:06:43]} Bg4 {[%emt 0:03:05]} 18. d5 {
[%emt 0:04:58]} Nd4 {[%emt 0:02:14]} 19. Be3 {[%emt 0:00:42]} Bxf3 {[%emt 0:00:
00]} 20. gxf3 {[%emt 0:01:01]} Nxc2 {[%emt 0:02:41]} 21. Qxc2 {[%emt 0:00:59]}
Qc8 {[%emt 0:10:02]} 22. Qe2 {[%emt 0:23:01]} Qh3 {[%emt 0:11:00]} 23. Rec1 {
[%emt 0:03:04]} g6 {[%emt 0:04:07]} 24. Ra7 {[%emt 0:08:48]} Rec8 {[%emt 0:00:
00]} 25. Rxc8 {[%emt 0:02:32]} Qxc8 {[%emt 0:00:45]} 26. Kg2 {[%emt 0:02:48]}
h5 {[%emt 0:04:04]} 27. Qd2 {[%emt 0:03:09]} Ra8 {[%emt 0:15:22]} 28. Rxa8 {
[%emt 0:03:26]} Qxa8 {[%emt 0:00:17]} 29. Qb4 {[%emt 0:05:17]} Qb7 {[%emt 0:00:
00]} 30. Ne2 {[%emt 0:00:15]} Ne8 {[%emt 0:01:49]} 31. Qa5 {[%emt 0:05:59]} b4
{[%emt 0:02:35]} 32. Bd2 {[%emt 0:04:43]} b3 {[%emt 0:01:30]} 33. Qb4 {[%emt 0:
00:00]} Qxb4 {[%emt 0:00:53]} 34. Bxb4 {[%emt 0:00:06]} Nc7 {[%emt 0:00:06]}
35. Nc1 {[%emt 0:01:36]} Na6 {[%emt 0:00:22]} 36. Ba3 {[%emt 0:00:25]} Nc5 {
[%emt 0:00:20]} 37. Bxc5 {[%emt 0:05:42]} dxc5 {[%emt 0:00:07]} 38. Nxb3 {
[%emt 0:00:03]} f6 {[%emt 0:01:02]} 39. Kf1 {[%emt 0:01:30]} Kf7 {[%emt 0:00:
00]} 40. Ke2 {[%emt 0:00:09]} Ke8 {[%emt 0:00:46]} 41. Kd3 {[%emt 0:30:09]} Kd7
{[%emt 0:30:37]} 42. Kc4 {[%emt 0:00:10]} Bd6 {[%emt 0:00:00]} 43. Nxc5+ {
[%emt 0:00:00]} Kc7 {[%emt 0:00:00]} 44. Kb5 {[%emt 0:00:00]} h4 {[%emt 0:00:
00]} 45. h3 {[%emt 0:00:00]} f5 {[%emt 0:00:00]} 46. Ne6+ {[%emt 0:00:00]} Kb7
{[%emt 0:00:00]} 47. exf5 {[%emt 0:00:00]} gxf5 {[%emt 0:00:00]} 48. Ng7 {
[%emt 0:00:00]} e4 {[%emt 0:00:00]} 49. Nxf5 {[%emt 0:00:00]} Be5 {[%emt 0:00:
00]} 50. fxe4 {[%emt 0:00:00]} Bxb2 {[%emt 0:00:00]} 51. Nxh4 {[%emt 0:00:00]}
Be5 {[%emt 0:00:00]} 52. Ng6 {[%emt 0:00:00]} 1-0

[Event "44th Chess Olympiad Open 2022"]
[Site "Chennai"]
[Date "2022.08.03"]
[Round "6.57"]
[White "BuKhalaf, Hussain"]
[Black "Boshra, Alshaeby"]
[Result "0-1"]
[WhiteElo "1813"]
[BlackElo "1854"]
[Annotator "NA RC"]
[PlyCount "24"]
[EventDate "2022.??.??"]
[TimeControl "60"]

1. c4 {[%emt 0:00:07]} e5 {[%emt 0:00:07]} 2. g3 {[%emt 0:00:07]} Nf6 {[%emt 0:
00:00]} 3. Bg2 {[%emt 0:00:08]} d5 {[%emt 0:00:19]} 4. e3 {[%emt 0:01:41]} Nc6
{[%emt 0:03:50]} 5. a3 {[%emt 0:04:53]} e4 {[%emt 0:09:58]} 6. Nc3 {[%emt 0:00:
00]} dxc4 {[%emt 0:10:58]} 7. Nxe4 {[%emt 0:01:26]} Ne5 {[%emt 0:04:02]} 8. Ne2
{[%emt 0:05:02]} Nd3+ {[%emt 0:21:51]} 9. Kf1 {[%emt 0:04:01]} Nxe4 {[%emt 0:
00:00]} 10. Bxe4 {[%emt 0:00:13]} Bh3+ {[%emt 0:00:31]} 11. Bg2 {[%emt 0:00:20]
} Qd5 {[%emt 0:02:07]} 12. Bxh3 {[%emt 0:01:38]} Qf3 {[%emt 0:01:11]} 0-1